{"text_format":"1","workbook":"xlsx","n_sheets":1,"sheets":["Time sheet"],"not_rendered":{"charts":0,"images":0,"macros":1,"external_links":0,"defined_names":1,"comments":0,"pivot_tables":0},"unopened":[],"bounds":{"document_bytes":16777216,"sheet_cells":100000,"rows_first":2000,"rows_last":500,"rows_between":2000,"halvings":0,"cell_chars":16384,"cell_head_chars":4096},"cells_cut":0,"cells_raw":0,"read":"whole","date_system":"1900"}

{"sheet":"Time sheet","index":0,"n_rows":43,"n_cols":15,"rows_kept":43,"cut":false,"hidden":false,"merged":[[13,3,13,9],[13,12,13,14],[41,8,41,12],[39,4,39,12],[39,13,39,14],[41,13,41,14],[16,3,16,5],[16,9,16,14]]}
[]
[null,null,"Directions:","Fill in the highlighted cells",null,null,null,null,"( last name first, please, and no nicknames )"]
[null,null,null,"Fill in the hours on days worked",null,null,null,null,"( round up to the nearest quarter hour, x.0, x.25, x.50, x.75)"]
[null,null,null,"Print the sheet"]
[null,null,null,"Student signs and dates"]
[null,null,null,"Supervisor signs and dates"]
[null,null,null,"Hand deliver (rignt now) to the Payroll Office"]
[]
[]
[]
[null,null,"STUDENT Employee Timesheet",null,null,null,null,null,"payroll:",null,null,null,"paid:"]
[]
[]
[null,null,"Student: ",null,null,null,null,null,null,null,null,"Position:"]
[null,null,null," ( like this:   Last Name, Legal First Name)",null,null,null,null,null,null,null,null,"(example: 2730FB)"]
[]
[null,null,"ID#:",null,null,null,null,null,"Supervisor:"]
[]
[]
[null,null,"start:","Sun","Mon","Tue","Wed","Thur","Fri","Sat","Pay Rate"]
[null,null,"2018-03-25",{"$f":"TEXT($C$21,\"d\")","v":"25"},{"$f":"TEXT($C$21+1,\"d\")","v":"26"},{"$f":"TEXT($C$21+2,\"d\")","v":"27"},{"$f":"TEXT($C$21+3,\"d\")","v":"28"},{"$f":"TEXT($C$21+4,\"d\")","v":"29"},{"$f":"TEXT($C$21+5,\"d\")","v":"30"},{"$f":"TEXT($C$21+6,\"d\")","v":"31"},"Regular","Overtime1"]
[null,null,"Regular",null,null,null,null,null,null,null,{"$f":"IF(SUM(D22:J22)>40,40, SUM(D22:J22))","v":0},{"$f":"IF(SUM(D22:J22)>40,SUM(D22:J22)-K22,0)","v":0}]
[]
[null,null,null,null,null,null,null,null,null,null,{"$f":"SUM(D24:J24)","v":0}]
[null,null,null,null,null,null,null,null,null,null,{"$f":"SUM(D25:J25)","v":0}]
[null,null,"TOTAL",{"$f":"SUM(D22:D25)","v":0},0,0,0,0,0,0,0,0]
[]
[null,null,"end:","Sun","Mon","Tue","Wed","Thur","Fri","Sat","Pay Rate",null,null,"        Totals"]
[null,null,{"$f":"TEXT($C$21+13,\"mmm d, yyyy\")","v":"Apr 7, 2018"},{"$f":"TEXT($C$21+7,\"d\")","v":"1"},{"$f":"TEXT($C$21+8,\"d\")","v":"2"},{"$f":"TEXT($C$21+9,\"d\")","v":"3"},{"$f":"TEXT($C$21+10,\"d\")","v":"4"},{"$f":"TEXT($C$21+11,\"d\")","v":"5"},{"$f":"TEXT($C$21+12,\"d\")","v":"6"},{"$f":"TEXT($C$21+13,\"d\")","v":"7"},"Regular","Overtime1",null,"Regular","Overtime1"]
[null,null,"Regular",null,null,null,null,null,null,null,{"$f":"IF(SUM(D30:J30)>40,40, SUM(D30:J30))","v":0},{"$f":"IF(SUM(D30:J30)>40,SUM(D30:J30)-K30,0)","v":0},null,{"$f":"+K30+K22","v":0},{"$f":"+L30+L22","v":0}]
[]
[null,null,null,null,null,null,null,null,null,null,{"$f":"SUM(D32:J32)","v":0}]
[null,null,null,null,null,null,null,null,null,null,0]
[null,null,"TOTAL",{"$f":"SUM(D30:D33)","v":0},0,0,0,0,0,0,0,0,null,{"$f":"+K34+K26","v":0},{"$f":"+L26+L34","v":0}]
[null,null,null,null,null,null,null,null,null,null,null,null,null,null,{"$f":"+N34+O34","v":0}]
[null,null,"1 Overtime is any time over 40 hours in any given week."]
[]
[null,null,"Payroll Deadline:  Received in Payroll on TUESDAY after the last day in the period (add 1 day for holidays)."]
[null,null,null,"    Pay may be delayed if not received by the deadline."]
[null,null,"Employee Signature ___",null,null,null,null,null,null,null,null,null,null,"Date "]
[]
[null,null,"Approved by ___________________________________ |",null,null,null,null,null,{"$f":"+J17","v":0},null,null,null,null,"Date "]
[null,null,null,null,"sign name",null,null,null,null,"print name",null,null,null,null,"to Payroll by Tuesday"]